Cogmind - Beta 10.2 @@@ ROGUE MODE // 2021.11.28 @ 17:56:24 Player: SURFACESEEKER Result: Destroyed by P-70 Sage with Tesla Rifle Performance ------------- Evolutions (5) 2500 Regions Visited (7) 1400 Robots Destroyed (123) 615 Value Destroyed (3627) 3627 Prototype IDs (7) 140 Alien Tech Used (0) 0 Bonus (236) 236 TOTAL SCORE: 8518 Bonus ------- High Alert Combat Kills 91 Follower Combat Kills 145 Cogmind --------- Core Integrity 0/1000 Matter 160/300 Energy 63/100 System Corruption 7% Temperature Cool (0) Movement Core (550) Ox10 Location -5/Factory Parts ------- > --- POWER (3) -------- (None) > --- PROPULSION (4) --- (None) > --- UTILITY (6) ------ Advanced Heat Sink Large Storage Unit Large Storage Unit Terrain Scan Processor > --- WEAPON (4) ------- (None) > --- INVENTORY (16) --- Terrain Scanner Improved Terrain Scanner Long-range Terrain Scanner Terrain Scan Processor Improved Transmission Jammer System Shield Peak State ------------ > --- POWER ------------ Light Nuclear Core Light Angular Momentum Engine Light Fission Core > --- PROPULSION ------- Advanced Heavy Siege Treads Advanced Heavy Siege Treads > --- UTILITY ---------- Large Storage Unit Large Storage Unit Long-range Terrain Scanner Terrain Scan Processor Target Analyzer Improved Transmission Jammer > --- WEAPON ----------- Variable Charge Gun Long-range Missile Launcher Maul Scythe > --- INVENTORY -------- Micro Fission Core Cryofiber Web Improved Heat Sink Large Storage Unit Large Storage Unit Compact Battery Terrain Scanner Improved Terrain Scanner Terrain Scan Processor Improved Core Shielding System Shield System Backup Module Drone Bay Remote Datajack [Rating: 85] Favorites ----------- Power Light Nuclear Core Engine Cooled Ion Engine Power Core Light Nuclear Core Propulsion Improved Aluminum Leg Treads Advanced Heavy Siege Treads Leg Improved Aluminum Leg Wheel Wheel Hover Unit Improved Hover Unit Flight Unit VTOL Module Utility Large Storage Unit Device Improved Terrain Scanner Storage Large Storage Unit Processor Terrain Scan Processor Protection Improved Core Shielding Weapon Flak Gun Energy Gun Improved Medium Laser Energy Cannon EM Pulse Cannon Ballistic Gun Flak Gun Ballistic Cannon Gauss Cannon Launcher Long-range Missile Launcher Special Weapon Remote Datajack Impact Weapon Maul Slashing Weapon Katana Piercing Weapon Spear Build | -11 -10 -9 -9 -8 -7 -6 -5 ------- Run | Scr Mat Mat Sto Mat Fac Fac Fac Slots Evolved 10 | . . 2 . 2 2 2 2 Power 2 | . . . . 1 . . 1 Propulsion 2 | . . 1 . . 1 . . Utility 4 | . . 1 . 1 1 1 . Weapon 2 | . . . . . . 1 1 Parts Attached 164 | 7 8 15 24 49 14 24 23 Power 27 | 1 1 2 2 11 2 4 4 Engine 19 | 1 1 2 2 8 . 4 1 Core 8 | . . . . 3 2 . 3 Reactor . | . . . . . . . . Propulsion 31 | 2 2 3 3 11 5 2 3 Treads 3 | . . . . . . . 3 Leg 18 | 2 2 3 3 7 1 . . Wheel 7 | . . . . 3 2 2 . Hover 1 | . . . . 1 . . . Flight 2 | . . . . . 2 . . Utility 40 | 2 2 2 2 14 2 6 10 Device 24 | 1 1 1 1 10 1 4 5 Storage 8 | 1 1 . . 3 . . 3 Processor 6 | . . 1 1 1 1 1 1 Hackware . | . . . . . . . . Protection 2 | . . . . . . 1 1 Artifact . | . . . . . . . . Weapon 66 | 2 3 8 17 13 5 12 6 Energy Gun 19 | 1 . 2 8 2 1 2 3 Energy Cannon 12 | . 2 2 . 2 2 4 . Ballistic Gun 17 | 1 1 4 5 5 1 . . Ballistic Cannon 1 | . . . . . . 1 . Launcher 1 | . . . . . . . 1 Special Weapon 1 | . . . . . . 1 . Impact Weapon 1 | . . . . . . 1 . Slashing Weapon 12 | . . . 4 4 1 1 2 Piercing Weapon 2 | . . . . . . 2 . Special Melee Weapon . | . . . . . . . . Unidentified Prototypes 7 | . . 1 4 . 1 . 1 Parts Lost 67 | . 2 9 3 16 3 10 24 Power 13 | . . 1 . 4 . 2 6 Propulsion 17 | . . 3 2 6 2 2 2 Utility 13 | . 1 . 1 1 1 . 9 Weapon 24 | . 1 5 . 5 . 6 7 Highest Loss Streak 20 | . 2 5 1 9 2 3 20 Average Slot Usage (%) 89 | . 98 87 93 95 89 81 77 Engine 9 | . 14 10 11 15 . 8 5 Core 3 | . . . . 1 15 3 6 Treads 1 | . . . . . . . 7 Leg 14 | . 28 22 27 13 10 . . Wheel 5 | . . . . 10 8 12 1 Device 10 | . 12 17 15 9 6 7 10 Storage 13 | . 13 11 11 17 15 13 11 Processor 8 | . . 4 6 9 11 13 10 Energy Gun 5 | . 1 6 9 6 . 3 2 Energy Cannon 3 | . 16 4 . 4 1 2 . Ballistic Gun 5 | . 10 9 8 6 8 . . Slashing Weapon 2 | . . . 3 1 2 1 4 Naked Turns . | . . . . . . . . Heaviest Build 76 | 10 28 31 32 61 57 76 74 Greatest Support 160 | 20 26 39 36 40 56 56 160 Greatest Overweight (x) 16 | . 1 2 9 13 5 2 16 Average Overweight (x) . | . . . . 1 1 1 . Largest Inventory Capacity 22 | 6 10 10 10 16 16 16 22 Average Capacity 13 | 5 6 10 10 15 16 16 15 Most Carried 16 | 5 10 10 10 16 16 16 16 Average Carried 12 | 2 6 8 9 14 15 15 15 Final Capacity 16 | 6 10 10 10 16 16 16 16 Final Carried 16 | 4 10 10 10 16 16 16 6 Class Distribution -------------------- 47% | Scavenger-Mutant 45% | Mutant 5% | Generator-Mutant Dominant Class ---------------- Mutant | -10/Materials Mutant | -9/Materials Scavenger-Mutant | -9/Storage Scavenger-Mutant | -8/Materials Scavenger-Mutant | -7/Factory Mutant | -6/Factory Mutant | -5/Factory Resources | -11 -10 -9 -9 -8 -7 -6 -5 ----------- Run | Scr Mat Mat Sto Mat Fac Fac Fac Matter Collected 2579 | 236 46 225 569 552 194 643 114 Remotely . | . . . . . . . . Salvage Created 4024 | 124 88 395 936 1285 194 755 247 Parts 279 | 21 10 24 62 105 18 26 13 Haulers Intercepted 1 | . . . . . . 1 . Recyclers Shooed 7 | . . 2 1 . 3 . 1 Parts Field Recycled . | . . . . . . . . Retrieved Matter . | . . . . . . . . Parts Self-Destructed . | . . . . . . . . Prevented . | . . . . . . . . Kills | -11 -10 -9 -9 -8 -7 -6 -5 ------- Run | Scr Mat Mat Sto Mat Fac Fac Fac Combat Hostiles Destroyed 89 | . 1 10 18 29 7 15 9 Melee 7 | . . . . 2 3 1 1 Guns 58 | . 1 8 18 22 4 4 1 Cannons 13 | . . 2 . 2 . 9 . AOE 11 | . . . . 3 . 1 7 Classes Destroyed 14 | 2 2 3 4 1 1 1 . Worker 3 | 1 . . 2 . . . . Builder 15 | . . . 2 9 . 1 3 Tunneler 6 | 6 . . . . . . . Hauler 1 | . . . . . . 1 . Recycler 1 | . . . 1 . . . . Operator 2 | . . . 1 . . 1 . Watcher 6 | . 2 . 2 1 . . 1 Swarmer 31 | . . 3 3 11 6 4 4 Grunt 36 | . 1 4 8 12 . 8 3 Brawler 2 | . . 1 . . . . 1 Protector 1 | . . . 1 . . . . Sentry 15 | . . 2 6 5 . 1 1 Hunter 1 | . . . . 1 . . . Programmer 3 | . . . . . 1 2 . Best Kill Streak 9 | 2 1 4 7 9 3 4 7 Combat Bots Only 6 | . 1 4 6 4 3 4 4 Max Kills in Single Turn 2 | 1 1 1 2 2 2 1 2 Gunslinging 1 | . . . . 1 . . . Exploded 2 | . . . . 1 . 1 2 Melee 1 | . . . . 1 1 1 1 Uniques/NPCs Destroyed . | . . . . . . . . Combat | -11 -10 -9 -9 -8 -7 -6 -5 -------- Run | Scr Mat Mat Sto Mat Fac Fac Fac Damage Taken 11192 | . 471 1073 706 2519 488 1889 4046 Core 2093 | . 108 184 128 420 110 128 1015 Absorbed by Shields . | . . . . . . . . Core Remaining (%) 61 | 100 56 . 22 23 84 84 . Volleys Fired 344 | 19 27 41 79 76 16 66 20 Largest 2 | 2 2 2 2 2 2 2 1 Hottest 225 | 60 120 120 112 112 63 135 225 Shots Fired 585 | 38 54 69 148 136 27 93 20 Gun 438 | 38 38 49 148 105 24 25 11 Cannon 137 | . 16 20 . 31 3 67 . Launcher 9 | . . . . . . . 9 Special 1 | . . . . . . 1 . Kinetic 317 | 19 31 41 102 59 24 41 . Thermal 158 | 19 23 28 28 18 . 31 11 Explosive 9 | . . . . . . . 9 Electromagnetic 100 | . . . 18 59 3 20 . Robot Hit Streak 17 | 6 8 7 17 13 4 11 8 Robot Miss Streak 9 | 4 4 2 4 7 9 5 2 Penetration Max . | . . . . . . . . Secondary Targets 4 | . . . . 4 . . . Max Gunslinging Chain 1 | . . . . 1 . . . Shots Hit Robots 414 | 21 30 43 87 105 30 70 28 Core Hits 245 | 9 8 19 50 78 19 32 30 Critical Hits 10 | . . . 1 2 . 6 1 Critical Kills 2 | . . . 1 . . 1 . Critical Parts Destroyed 7 | . . . . 2 . 5 . Melee Attacks 100 | . . . 28 6 15 27 24 Impact 9 | . . . . . . 2 7 Slashing 66 | . . . 28 6 15 . 17 Piercing 25 | . . . . . . 25 . Sneak Attacks 4 | . . . 1 . 2 1 . Combat Hostiles . | . . . . . . . . Follow-up Attacks 5 | . . . . . . 1 4 Damage Inflicted 9678 | 258 325 581 1390 2385 661 1843 2235 Guns 4352 | 258 220 322 1222 1400 314 336 280 Cannons 1800 | . 105 245 . 406 . 1044 . Explosions 2095 | . . . 41 482 . 45 1527 Melee 1340 | . . . 101 93 347 372 427 Ramming 91 | . . 14 26 4 . 46 1 Kinetic 3429 | 85 175 244 1021 802 314 788 . Thermal 1988 | 173 150 323 64 590 . 408 280 Explosive 1695 | . . . . 168 . . 1527 Electromagnetic 1135 | . . . 178 728 . 229 . Impact 140 | . . . . . . 68 72 Slashing 896 | . . . 101 93 347 . 355 Piercing 304 | . . . . . . 304 . Highest Corruption 7 | . . . 1 . . 4 7 Average Corruption 2 | . . . 1 . . 2 3 Corruption Purged 1 | . . . . . . 1 . Effects 18 | . . . . . . 15 3 Message Errors 4 | . . . . . . 4 . Matter Fused 1 | . . . . . . 1 . Heat Flow Errors 1 | . . . . . . . 1 Energy Discharges 1 | . . . . . . 1 . Data Loss (minor) 6 | . . . . . . 5 1 Targeting Errors 5 | . . . . . . 4 1 Overload Shots 3 | . . . . . . . 3 Overflow Damage 167 | . 12 . . 53 48 3 51 Projectiles 12 | . 12 . . . . . . Explosions 102 | . . . . 51 . . 51 Melee 53 | . . . . 2 48 3 . Knockbacks 11 | . . 1 . . . 10 . Impact 2 | . . 1 . . . 1 . Kinetic 8 | . . . . . . 8 . Secondary 1 | . . . . . . 1 . Self-Inflicted Damage 362 | . . 4 4 267 . 22 65 Shots 8 | . . . . 5 . . 3 Rammed 7 | . . 2 1 . . 2 2 Targets Rammed 11 | . . 3 2 2 . 2 2 Kicked 4 | . . 1 1 2 . . . Crushed . | . . . . . . . . Highest Temperature 513 | 40 180 486 252 413 66 504 513 Average Temperature 103 | 20 77 190 64 97 34 88 157 Received Heat Transfer 2331 | . 264 315 237 918 . 408 189 Effects 15 | . . 4 . 1 . 2 8 Shutdowns 3 | . . 1 . 1 . . 1 Energy Bleed 3 | . . 1 . . . 1 1 Interference 5 | . . . . . . . 5 Matter Decay 2 | . . 1 . . . 1 . Short Circuit 1 | . . 1 . . . . . Damage (minor) 1 | . . . . . . . 1 Siege Activations . | . . . . . . . . Robots Corrupted . | . . . . . . . . Combat Hostiles . | . . . . . . . . Parts Fried 3 | . . . 1 2 . . . Impact Corruptions 1 | . . . . . . 1 . Robots Melted . | . . . . . . . . Combat Hostiles . | . . . . . . . . Parts Melted 4 | . . 2 . . . 1 1 Heat Transferred 3660 | 400 322 693 100 992 . 716 437 Parts Sabotaged . | . . . . . . . . Parts Stolen . | . . . . . . . . Parts Stripped . | . . . . . . . . Power Chain Reactions 7 | . . . 1 5 . 1 . Missiles Intercepted . | . . . . . . . . Alert | -11 -10 -9 -9 -8 -7 -6 -5 ------- Run | Scr Mat Mat Sto Mat Fac Fac Fac Peak Influence 502 | 35 99 237 407 502 306 329 231 Initial 189 | . 22 17 15 112 189 84 110 Average 187 | 12 35 117 214 299 205 158 128 Maximum Alert Level 2 | . . 1 2 2 1 1 1 Low Security (%) 55 | 100 100 91 31 35 60 59 66 Level 1 35 | . . 8 65 28 39 40 33 Level 2 9 | . . . 3 36 . . . Level 3 . | . . . . . . . . Level 4 . | . . . . . . . . Level 5 . | . . . . . . . . High Security . | . . . . . . . . Max Security . | . . . . . . . . Squads Dispatched 19 | . . 1 3 7 2 4 2 Investigation 4 | . . . . 3 . 1 . Extermination 4 | . . . . . 2 1 1 Reinforcement 8 | . . 1 1 4 . 2 . Assault 2 | . . . 2 . . . . Garrison 1 | . . . . . . . 1 Intercept . | . . . . . . . . Construction Impeded 2 | . . . . 1 . 1 . Haulers Reinforced 1 | . . . . . . 1 . Stealth | -11 -10 -9 -9 -8 -7 -6 -5 --------- Run | Scr Mat Mat Sto Mat Fac Fac Fac Distress Signals 5 | . 1 . 2 2 . . . Communications Jammed 30 | . . . . . . . 30 Distress Signals 27 | . . . . . . . 27 Times Spotted 150 | . 9 14 36 40 8 23 20 Peak Tracking Total 9 | . 3 6 9 6 3 4 8 Tactical Retreats 13 | . 2 1 2 6 1 1 . Traps | -11 -10 -9 -9 -8 -7 -6 -5 ------- Run | Scr Mat Mat Sto Mat Fac Fac Fac Traps Triggered 6 | . . . 3 1 . 1 1 Indirectly . | . . . . . . . . Trap Hack Attempts . | . . . . . . . . Triggered . | . . . . . . . . Disarmed . | . . . . . . . . Reprogrammed . | . . . . . . . . Reused . | . . . . . . . . Traps Extracted . | . . . . . . . . Installed . | . . . . . . . . Triggered . | . . . . . . . . Machines | -11 -10 -9 -9 -8 -7 -6 -5 ---------- Run | Scr Mat Mat Sto Mat Fac Fac Fac Machines Disabled 14 | . . . 4 3 . 4 3 Max in Single Turn 2 | . . . 1 1 . 1 2 Machines Sabotaged . | . . . . . . . . Garrisons Compromised . | . . . . . . . . Overloaded Fab Kills . | . . . . . . . . Fab Network Shutdowns . | . . . . . . . . Hacking | -11 -10 -9 -9 -8 -7 -6 -5 --------- Run | Scr Mat Mat Sto Mat Fac Fac Fac Machines Accessed 25 | . 3 . 9 3 3 4 3 Terminals 21 | . 3 . 8 3 2 4 1 Fabricators 2 | . . . . . . . 2 Repair Stations . | . . . . . . . . Recycling Units 1 | . . . 1 . . . . Scanalyzers 1 | . . . . . 1 . . Garrison Access . | . . . . . . . . Total Hacks 65 | . 9 . 25 11 7 8 5 Successful 29 | . 4 . 13 6 2 2 2 Failed 36 | . 5 . 12 5 5 6 3 Catastrophic 3 | . 1 . . . 1 1 . Database Lockouts . | . . . . . . . . Manual 52 | . 8 . 21 6 4 8 5 Terminals 56 | . 9 . 23 11 4 8 1 Fabricators 4 | . . . . . . . 4 Repair Stations . | . . . . . . . . Recycling Units 2 | . . . 2 . . . . Scanalyzers 3 | . . . . . 3 . . Garrison Access . | . . . . . . . . Terminal Hacks 8 | . 1 . 6 1 . . . Record 3 | . . . 2 1 . . . Open Door 2 | . . . 2 . . . . Alert Level 1 | . . . 1 . . . . Locate Traps 2 | . 1 . 1 . . . . Fabricator Hacks 1 | . . . . . . . 1 Build 1 | . . . . . . . 1 Repair Station Hacks . | . . . . . . . . Recycling Unit Hacks 1 | . . . 1 . . . . Report Inventory 1 | . . . 1 . . . . Scanalyzer 1 | . . . . . 1 . . Insert Component 1 | . . . . . 1 . . Garrison Access Hacks . | . . . . . . . . Unauthorized Hacks 17 | . 3 . 5 5 1 2 1 Terminals 17 | . 3 . 5 5 1 2 1 Track 12 | . 2 . 4 3 1 1 1 Botnet 5 | . 1 . 1 2 . 1 . Fabricators . | . . . . . . . . Repair Stations . | . . . . . . . . Recycling Units . | . . . . . . . . Scanalyzers . | . . . . . . . . Garrison Access . | . . . . . . . . Data Cores Recovered 1 | . . . . . . 1 . Used 1 | . . . . . . 1 . Hacking Detections 23 | . 3 . 7 3 3 4 3 Full Trace Events 3 | . 1 . . 1 . 1 . Feedback Events 1 | . . . . . . 1 . Corruption 1 | . . . . . . 1 . Feedback Blocked . | . . . . . . . . Robot Schematics Acquired . | . . . . . . . . Robots Built . | . . . . . . . . Matter . | . . . . . . . . Time . | . . . . . . . . Total Robot Build Rating . | . . . . . . . . Part Schematics Acquired . | . . . . . . . . Parts Built 2 | . . . . . . . 2 Matter 278 | . . . . . . . 278 Time 139 | . . . . . . . 139 Total Part Build Rating 18 | . . . . . . . 18 Parts Repaired . | . . . . . . . . Time . | . . . . . . . . Parts Recycled . | . . . . . . . . Recycled Matter . | . . . . . . . . Retrieved Matter . | . . . . . . . . Retrieved Components . | . . . . . . . . Parts Scanalyzed 1 | . . . . . 1 . . Part Schematics Acquired . | . . . . . . . . Parts Damaged . | . . . . . . . . Bothacking | -11 -10 -9 -9 -8 -7 -6 -5 ------------ Run | Scr Mat Mat Sto Mat Fac Fac Fac Used RIF Installer . | . . . . . . . . Robots Hacked 1 | . . . . . . 1 . Non-combat 1 | . . . . . . 1 . Combat . | . . . . . . . . Robot Hacks Applied 1 | . . . . . . 1 . no_distress 1 | . . . . . . 1 . Relay Couplers Released . | . . . . . . . . Robots Rewired . | . . . . . . . . Allies Hacked . | . . . . . . . . Hacks Repelled . | . . . . . . . . Allies | -11 -10 -9 -9 -8 -7 -6 -5 -------- Run | Scr Mat Mat Sto Mat Fac Fac Fac Total Allies 2 | . . . 2 . . . . Largest Group 2 | . . . 2 . . . . Highest-Rated Group 62 | . . . 62 . . . . Highest-Rated Ally 31 | . . . 31 . . . . Total Orders 10 | . . . . 10 . . . ROAM 1 | . . . . 1 . . . EXPLORE 8 | . . . . 8 . . . RETURN 1 | . . . . 1 . . . Ally Attacks 16 | . . . 16 . . . . Total Damage 230 | . . . 230 . . . . Kills 5 | . . . 5 . . . . Allies Corrupted . | . . . . . . . . Allies Melted . | . . . . . . . . Intel | -11 -10 -9 -9 -8 -7 -6 -5 ------- Run | Scr Mat Mat Sto Mat Fac Fac Fac Robot Analysis Total . | . . . . . . . . Derelict Logs Recovered . | . . . . . . . . Drone Launches 11 | . . . . 9 . . 2 Drone Recoveries 7 | . . . . 7 . . . Exploration | -11 -10 -9 -9 -8 -7 -6 -5 ------------- Run | Scr Mat Mat Sto Mat Fac Fac Fac Turns Passed 7416 | 261 548 475 1598 1706 778 1104 946 Spaces Moved 4001 | 165 356 217 864 764 474 713 448 Core 17 | 11 . . 3 1 . . 2 Treads 260 | . . . . . . . 260 Legs 2225 | 154 356 217 861 396 241 . . Wheels 1499 | . . . . 367 233 713 186 Hover . | . . . . . . . . Flight . | . . . . . . . . Fastest Speed 50 | 50 120 120 120 90 100 100 110 Average Speed 129 | 115 126 145 132 131 137 107 145 Slowest Speed 850 | 120 150 180 500 700 180 120 850 Overloaded Moves . | . . . . . . . . Propulsion Burnouts . | . . . . . . . . Robots Hopped . | . . . . . . . . Cave-ins Triggered . | . . . . . . . . Exploration Rate (%) 31 | 7 44 15 80 74 8 11 10 Regions Visited 7 Branch Regions 1 Pre-discovered Areas . | . . . . . . . . Known Exits Taken . | . . . . . . . . Unknown Exits Taken 7 | 1 1 1 1 1 1 1 . Scrap Searched . | . . . . . . . . Spaces Dug 24 | . . . 4 1 4 10 5 Terrain Destroyed 138 | . . . 7 48 4 16 63 Melee 21 | . . . 4 1 4 7 5 Projectile 9 | . . . . . . 9 . AOE 108 | . . . 3 47 . . 58 Terrain Rammed . | . . . . . . . . Walls Destroyed . | . . . . . . . . Machines Disabled . | . . . . . . . . Actions | -11 -10 -9 -9 -8 -7 -6 -5 --------- Run | Scr Mat Mat Sto Mat Fac Fac Fac Total 5507 | 201 408 312 1130 1319 554 912 671 Wait 727 | . 1 24 106 373 13 62 148 Move 3994 | 164 355 216 863 763 473 712 448 Hop . | . . . . . . . . Pick Up 108 | 11 11 12 16 31 9 11 7 Fast Attach 31 | . 3 . 2 7 7 7 5 Attach 66 | 7 1 10 5 17 3 7 16 Detach 2 | . . . . . . 1 1 Swap 67 | . 4 5 17 25 4 10 2 Drop 62 | . 6 1 12 19 14 8 2 Fire 344 | 19 27 41 79 76 16 66 20 Melee 95 | . . . 28 6 15 26 20 Ram 4 | . . . . . . 2 2 Kick 7 | . . 3 2 2 . . . Crush . | . . . . . . . . Escape Stasis . | . . . . . . . . Rewire . | . . . . . . . . Trap . | . . . . . . . . Miscellaneous . | . . . . . . . . Route ------- -11/Scrapyard -10/Materials (discovered 2 exits: [*Mat] / [*Min]) -9/Materials -9/Storage (discovered 2 exits: *Mat / [Rec]) -8/Materials -7/Factory -6/Factory -5/Factory History --------- Turn | Location | Event 5 | -11/Scrapyard | Discovered new exit (range 16) 262 | -11/Scrapyard | Entered Materials 262 | -10/Materials | Discovered new exit (range 14) 305 | -10/Materials | Build established: Mutant 733 | -10/Materials | Discovered new exit (range 8) 810 | -10/Materials | Entered another Materials area 810 | -9/Materials | Evolved 2 slots: Propulsion x1, Utility x1 841 | -9/Materials | Discovered new exit (range 12) 1033 | -9/Materials | Lost 5 parts (2n3w) 1089 | -9/Materials | Lost 3 parts (1p1n1w) 1285 | -9/Materials | Entered Storage 1541 | -9/Storage | Met a pair of Derelict thieves 1633 | -9/Storage | Core integrity fell below 50% 1991 | -9/Storage | Build established: Scavenger-Mutant 2431 | -9/Storage | Discovered new exit (range 9) 2787 | -9/Storage | Discovered new exit (range 15) 2883 | -9/Storage | Entered Materials 2883 | -8/Materials | Evolved 2 slots: Power x1, Utility x1 3198 | -8/Materials | Build established: Mutant 3735 | -8/Materials | Build established: Scavenger-Mutant 3794 | -8/Materials | Core integrity fell below 50% 3848 | -8/Materials | Lost 9 parts (3p3n3w) 4332 | -8/Materials | Discovered new exit (range 34) 4589 | -8/Materials | Entered Factory 4589 | -7/Factory | Evolved 2 slots: Propulsion x1, Utility x1 5197 | -7/Factory | Discovered new exit (range 12) 5367 | -7/Factory | Entered another Factory area 5367 | -6/Factory | Evolved 2 slots: Utility x1, Weapon x1 6125 | -6/Factory | Build established: Mutant 6351 | -6/Factory | Discovered new exit (range 11) 6471 | -6/Factory | Entered another Factory area 6471 | -5/Factory | Evolved 2 slots: Power x1, Weapon x1 6499 | -5/Factory | Lost 3 parts (1n2w) 6808 | -5/Factory | Fabricated Adv. Heavy Siege Treads? 7364 | -5/Factory | Garrison activated, responded to threat 7397 | -5/Factory | Core integrity fell below 50% 7409 | -5/Factory | Core integrity fell below 20% 7417 | -5/Factory | Destroyed by P-70 Sage with Tesla Rifle Last Messages --------------- 07404_ K-01 Serf collects debris. 07404_ Com. Battery destroyed. 07404_ Penetrated by Slug. 07404_ Cryofiber Web destroyed. 07406_ Penetrated by Slug. 07406_ Slug penetrates Wall. 07406_ R-10 Processor collects VTOL Module. 07408_ K-01 Serf collects debris. 07408_ Penetrated by Slug. 07409_ K-01 Serf destroyed. 07410_ R-10 Processor collects System Backup Module. 07411_ Slammed into P-70 Sage. 07411_ Lrg. Storage Unit destroyed. 07412_ Penetrated by Slug. 07413_ P-70 Sage resets R-10 Processor, system corruption cleaned. 07413_ R-10 Processor collects Remote Datajack. 07414_ R-10 Processor destroyed. 07415_ Penetrated by Slug. 07416_ Slug penetrates Wall. 07417_ Imp. Core Shielding destroyed. Map ----- +----------------------------------------------------+ | #?###?## #### """" # # "" | | ?##??### #### # # "" | | ############+#########+#######+### # "" | | ## # # "" | | ?# """ ! + # | | ?# """ # """ """ " + ?" | | ## """ # """ """ "" # "? | | ## + """ """ G # "" | | ## """ ### """ "" ###### # "" | | ## """ ### " ###?## # | | ## """ ### """ """ #?#### # ?? | | ## ### """ """ ####?# ##?? | | ############# """ """ ###??#? ??? | | ############# """ """ #?#### ? ? | | ####?######## ###### ? ??# | | #?######???## ###?###?#?????? | | ####?#???#### ! !####????? ??? | | #####?##?#### ##############?#??? ? ??? | | ############# ##?##############?# ???? | | # ##### ##### ###############?###?????? | | # # ##### #####???#?##????#?? | | # # # ####?##?#??#??#? | | # # # " ###?##?#??????#? | | # # #! """ ###??#?#????#??? | | # # s*%%! ######???#?????? | | #!! # p@%%| # """ ??????? | | #!! + u!s== ] #? ??" ??????? | | # #% h#p! /] # ??" ? ? ????? | | # # % h# # ? ? ??????? | | # ## # / ????????? | | # " # ######### """ ?????????? | | # # ## = # """ ????????? | | # # ## !! # """? ? ??????? | | ## ######## ## ! # ????????? | | #### ## #####+##???????? | | ### # ## #####?#????????? | | ## #####+#####?## ?#???????? | | ### ?? ? #????????? | | ### ##+####?####? ?? #?#??????? | | #?# " # ? #### ??????????? | | ####" #?""" ? #?#? ? ?#????????? | | ##?#" # """ ####? ??????????? | | ##### #??"" ###? ? ??????????? | | ?#?## # ? ###? ? ??????????? | | ########+##### #"S? ?### ? ???????????? | | ?#? ? ? #"""? +? ??? ??????????? | | ?# ? # # ?" ??## ????????????? | | ?? ? # ?? ? ? #??# ?????????????? | | ?# ?? ? ? ?###?####?##???????????????? | | ?# ? ?? # ??#??##?#?#????????????????? | +----------------------------------------------------+ Best States ------------- Heat Dissipation 64 Energy Generation 44 Energy Capacity 470 Matter Stores 300 Matter Capacity 300 Sight Range 16 Terrain Scan Range 24 Terrain Scan Density 85 Jamming Range 12 Base Temperature (-) 100 Core Shielding 30 Evasion (%) 42 Target Analysis 5 Recoil Reduction 4 Item Schematics ----------------- None Robot Schematics ------------------ None Fabricated ------------ Adv. Heavy Siege Treads | x2 | -5/Factory | Preloaded Alien Tech Used ----------------- None Achievements -------------- None Challenges ------------ None Game ------ Seed SiegeSmartbombTriangulator Manual? 0 Play Time 01:42:52 Cumulative 94.3 hours Start 2021.11.28 @ 15:39:28 End 2021.11.28 @ 17:56:24 Sessions 3 Manual Loads 0 Difficulty Rogue Special Mode None Game No. 77 Rogue 77 Adventurer 0 Explorer 0 Win Type - Total 0 Types 0/0/0/0/0/0/0/0/0 Lore% 29 Gallery% 47 Achievement% 28 Wizard Run 0 Options --------- ASCII 0 Keyboard 0 Movement Arrows Keybinds 0 Fullscreen 1 Font 14/Terminus Map View 72x54 Tactical HUD 1 Map Filters NONE Filters NONE Steam 1 RUN: 42fd72dd-532d-46fe-b3fd-86499a61c6be